Workbook

Sheet 14- дневное меню
A1: Согласовано: | D1: Утверждаю:
A2: Директор МБОУ "Левашевская ООШ" | B2: БОУ "Левашевская ООШ" | D2: Директор ООО "Эдем"
B3: А.Н.Матвеев | D3: ___________Г. Т. Сафина
A5: Двухнедельное меню для организации сбалансированного питания детей в трудовых
A6: лагерях с дневным прибыванием детей без сна в период каникул
A8: № рецептур | B8: Приём пищи, наименование блюда | C8: Масса порций, в гр. | D8: Пищевая ценность | G8: Энергетическая ценность
D9: Белки | E9: Жиры | F9: Углеводы
B10: День 1 - завтрак
A11: №175 | B11: Каша "дружба" молочная со сливочным маслом | C11: 250/12 | D11: 8.05 | E11: 11.6 | F11: 44.96 | G11: 339.06
A12: №401 | B12: Оладьи со сгущенкой | C12: 80/20 | D12: 5.4 | E12: 5.95 | F12: 32.26 | G12: 200.48
B13: Хлеб пшеничный | C13: 70 | D13: 4.43 | E13: 1.96 | F13: 30.45 | G13: 137
A14: №376 | B14: Чай с сахаром | C14: 200 | D14: 0.15 | E14: 0.04 | F14: 12.13 | G14: 55.16
B15: Итого за завтрак: | D15: =D11+D12+D13+D14 -> 18.03 | E15: =E11+E12+E13+E14 -> 19.55 | F15: 119.8 | G15: 731.7
B16: День 1 - 2 завтрак
A17: №338 | B17: Фрукт | C17: 100 | D17: 1.69 | E17: 0.2 | F17: 8.09 | G17: 37.8
A18: №389 | B18: Сок натуральный | C18: 200 | D18: 0 | E18: 0 | F18: 10.5 | G18: 42
B19: Итого за 2-ой завтрак | D19: =D17+D18 -> 1.69 | E19: =E17+E18 -> 0.2 | F19: 18.59 | G19: 79.8
B20: День 1 - обед
A21: № 71 | B21: Помидоры свежие порционно с маслом | C21: 100 | D21: 1.1 | E21: 5.2 | F21: 5.2 | G21: 24
A22: №103 | B22: Суп картофельный с макаронными изделиями на мкб со сметаной | C22: 250/15/10 | D22: 9.2 | E22: 12.02 | F22: 17.37 | G22: 218
A23: № 259 | B23: Жаркое по - домашнему из говядины | C23: 250 | D23: 20.56 | E23: 14.13 | F23: 31.4 | G23: 402.5
B24: Хлеб пшеничный/ ржано пшеничный | C24: 70 | D24: 4.43 | E24: 1.96 | F24: 30.45 | G24: 137
A25: №349 | B25: Компот из сухофруктов | C25: 200 | D25: 0.05 | E25: 0 | F25: 17.86 | G25: 71.72
B26: Итого за обед: | D26: =D21+D22+D23+D24+D25 -> 35.34 | E26: 33.31 | F26: 102.28 | G26: 853.22
B27: Итого за день: | D27: =D15+D19+D26 -> 55.06 | E27: =E15+E19+E26 -> 53.06 | F27: 240.67 | G27: 1664.72
B29: День 2 - завтрак
A30: №15 | B30: Сыр (порциями) | C30: 30 | D30: 4.5 | E30: 4.95 | F30: 1.05 | G30: 96.15
A31: №312 | B31: Пюре картофельное | C31: 200 | D31: 4.57 | E31: 9.46 | F31: 41.29 | G31: 185.64
A32: №301 | B32: Кнели куриные | C32: 100 | D32: 9.8 | E32: 6.2 | F32: 6.41 | G32: 195.82
B33: Хлеб пшеничный | C33: 70 | D33: 4.43 | E33: 1.96 | F33: 30.45 | G33: 137
A34: №377 | B34: Чай с лимоном | C34: 200 | D34: 0.45 | E34: 0 | F34: 15.95 | G34: 60.7
B35: Итого за завтрак: | D35: =D30+D31+D32+D33+D34 -> 23.75 | E35: =E30+E31+E32+E33+E34 -> 22.57 | F35: 95.15 | G35: 675.31
B36: День 2 - 2-ой завтрак
A37: №389 | B37: Сок натуральный | C37: 200 | D37: 0 | E37: 0 | F37: 10.5 | G37: 42
B38: Кондитерское изделие (Печенье) | C38: 50 | D38: 4 | E38: 6 | F38: 31 | G38: 200
B39: Итого за 2-ой завтрак | D39: =D37+D38 -> 4 | E39: =E37+E38 -> 6 | F39: 41.5 | G39: 242
B40: День 2 - обед
A41: №45 | B41: Салат из белокочанной капусты | C41: 100 | D41: 1.42 | E41: 4.52 | F41: 9.65 | G41: 93.85
A42: №96 | B42: Рассольник ленинградский на мкб со сметаной | C42: 250/15/10 | D42: 6.43 | E42: 8.8 | F42: 19.4 | G42: 204.27
A43: №304 | B43: Рис отварной | C43: 200 | D43: 4.93 | E43: 9.76 | F43: 49.64 | G43: 274.16
A44: №229 | B44: Рыба припущенная с овощами в сметанном соусе | C44: 100/50 | D44: 15.29 | E44: 8.76 | F44: 22.26 | G44: 229.04
B45: Хлеб ржано-пшеничный | C45: 70 | D45: 4.43 | E45: 1.96 | F45: 30.45 | G45: 137
A46: №359 | B46: Кисель ягодный | C46: 200 | D46: 0 | E46: 0 | F46: 32.4 | G46: 118.8
B47: Итого за обед: | D47: =D41+D42+D43+D44+D45+D46 -> 32.5 | E47: =E41+E42+E43+E44+E45+E46 -> 33.8 | F47: 163.8 | G47: 1057.12
B48: Итого за день: | D48: =D35+D39+D47 -> 60.25 | E48: =E35+E39+E47 -> 62.37 | F48: 300.45 | G48: 1974.43
B50: День 3 - завтрак
A51: №223 | B51: Запеканка из творога со сгущенкой | C51: 80/20 | D51: 8.71 | E51: 4.69 | F51: 11.64 | G51: 139.66
A52: №181 | B52: Каша манная молочная со сливочным маслом | C52: 250/12 | D52: 6.17 | E52: 13.31 | F52: 29.2 | G52: 261.31
B53: Хлеб пшеничный | C53: 70 | D53: 4.43 | E53: 1.96 | F53: 30.45 | G53: 137
A54: №382 | B54: Какао с молоком | C54: 200 | D54: 4.02 | E54: 3.94 | F54: 16.6 | G54: 116.8
B55: Итого за завтрак: | D55: =D51+D52+D53+D54 -> 23.33 | E55: 23.9 | F55: 87.89 | G55: 654.77
B56: День 3 - 2-ой завтрак
A57: №389 | B57: Сок натуральный | C57: 200 | D57: 0 | E57: 0 | F57: 10.5 | G57: 42
B58: Кондитерское изделие (Вафли) | C58: 50 | D58: 1.6 | E58: 6.3 | F58: 33 | G58: 195
B59: Итого за 2-ой завтрак | D59: =D57+D58 -> 1.6 | E59: =E57+E58 -> 6.3 | F59: 43.5 | G59: 237
B60: День 3 - обед
A61: №20 | B61: Салат из свежих огурцов | C61: 100 | D61: 0.72 | E61: 6.7 | F61: 10.4 | G61: 90.82
A62: №101 | B62: Суп картофельный с крупой(рисовый) на мкб со сметаной | C62: 250/15/10 | D62: 7.72 | E62: 8.5 | F62: 27.62 | G62: 208.25
A63: №306 | B63: Пюре гороховое | C63: 200 | D63: 8.72 | E63: 5.89 | F63: 33.94 | G63: 237.12
A64: №271 | B64: Котлета из говядины | C64: 100 | D64: 10.61 | E64: 5.79 | F64: 11.72 | G64: 212.88
B65: Хлеб ржано-пшеничный | C65: 70 | D65: 4.43 | E65: 1.96 | F65: 30.45 | G65: 137
A66: №342 | B66: Компот из свежих фруктов | C66: 200 | D66: 0.53 | E66: 0 | F66: 16.98 | G66: 68.14
B67: Итого за обед: | D67: 30.73 | E67: =E61+E62+E63+E64+E65+E66 -> 28.84 | F67: 131.11 | G67: 954.21
B68: Итого за день: | D68: =D55+D59+D67 -> 55.66 | E68: =E55+E59+E67 -> 59.04 | F68: 262.5 | G68: 1845.98
B70: День 4 - завтрак
A71: №401 | B71: Оладьи со повидлом | C71: 100/20 | D71: 6.75 | E71: 5.95 | F71: 40.32 | G71: 250.6
A72: №309 | B72: Макаронные изделия отварные | C72: 200 | D72: 7.29 | E72: 8.49 | F72: 45.81 | G72: 272.82
A73: №243 | B73: Сосиска отварная с соусом | C73: 100/30 | D73: 15.66 | E73: 16.32 | F73: 16.64 | G73: 265.5
B74: Хлеб пшеничный | C74: 70 | D74: 4.43 | E74: 1.96 | F74: 30.45 | G74: 137
A75: №376 | B75: Чай с сахаром | C75: 200 | D75: 0.15 | E75: 0.04 | F75: 12.13 | G75: 55.16
B76: Итого за завтрак: | D76: =D71+D72+D73+D74+D75 -> 34.28 | E76: =E71+E72+E73+E74+E75 -> 32.76 | F76: 145.35 | G76: 981.08
B77: День 4 - 2-ой завтрак
A78: №389 | B78: Сок натуральный | C78: 200 | D78: 0 | E78: 0 | F78: 10.5 | G78: 42
A79: №338 | B79: Фрукт | C79: 100 | D79: 0.84 | E79: 4.1 | F79: 2.5 | G79: 14
B80: Итого за 2-ой завтрак | D80: =D78+D79 -> 0.84 | E80: =E78+E79 -> 4.1 | F80: 13 | G80: 56
B81: День 4 - обед
A82: № 71 | B82: Помидоры свежие порционно | C82: 100 | D82: 1.1 | E82: 0.2 | F82: 5.2 | G82: 74
A83: №82 | B83: Борщ с капустой и картофелем на мкб со сметаной | C83: 250/15/10 | D83: 6.53 | E83: 9.28 | F83: 23.22 | G83: 191.02
A84: №244 | B84: Плов из говядины | C84: 250 | D84: 14.16 | E84: 10.89 | F84: 32.3 | G84: 293.68
B85: Хлеб ржано-пшеничный | C85: 70 | D85: 4.43 | E85: 1.96 | F85: 30.45 | G85: 137
A86: №349 | B86: Компот из сухофруктов | C86: 200 | D86: 0.05 | E86: 0 | F86: 17.86 | G86: 71.72
B87: Итого за обед: | D87: =D82+D83+D84+D85+D86 -> 26.27 | E87: 22.33 | F87: 109.03 | G87: 767.42
B88: Итого за день: | D88: =D76+D80+D87 -> 61.39 | E88: =E76+E80+E87 -> 59.19 | F88: 267.38 | G88: 1804.5
B90: День 5 - завтрак
A91: №182 | B91: Каша геркулесовая молочная со сливочным маслом | C91: 250/12 | D91: 8.6 | E91: 16.61 | F91: 30.22 | G91: 302.83
A92: №209 | B92: Яйцо отварное | C92: 40 | D92: 5 | E92: 4.6 | F92: 0.28 | G92: 62.8
B93: Хлеб пшеничный | C93: 70 | D93: 4.43 | E93: 1.96 | F93: 30.45 | G93: 137
A94: №377 | B94: Чай с лимоном | C94: 200 | D94: 0.45 | E94: 0 | F94: 15.95 | G94: 60.7
B95: Итого за завтрак: | D95: =D91+D92+D93+D94 -> 18.48 | E95: =E91+E92+E93+E94 -> 23.17 | F95: 76.9 | G95: 563.33
B96: День 5 - 2 ой завтрак
A97: №389 | B97: Сок натуральный | C97: 200 | D97: 0 | E97: 0 | F97: 10.5 | G97: 42
B98: Кондитерское изделие (Вафли) | C98: 50 | D98: 1.6 | E98: 6.3 | F98: 33 | G98: 195
B99: Итого за 2-ой завтрак | D99: =D97+D98 -> 1.6 | E99: =E97+E98 -> 6.3 | F99: 43.5 | G99: 237
B100: День 5 - обед
A101: №56 | B101: Салат овощной с яблоками | C101: 100 | D101: 1.53 | E101: 4.33 | F101: 12.56 | G101: 97.12
A102: №88 | B102: Щи из свежей капусты с картофелем на мкб со сметаной | C102: 250/15/10 | D102: 6.53 | E102: 8.01 | F102: 16.66 | G102: 175.45
A103: №312 | B103: Пюре картофельное | C103: 200 | D103: 4.57 | E103: 9.46 | F103: 41.29 | G103: 185.64
A104: №279 | B104: Тефтели мясные | C104: 100 | D104: 13.4 | E104: 5.76 | F104: 24.17 | G104: 236.9
B105: Хлеб ржано-пшеничный | C105: 70 | D105: 4.43 | E105: 1.96 | F105: 30.45 | G105: 137
A106: №359 | B106: Кисель ягодный | C106: 200 | D106: 0 | E106: 0 | F106: 32.4 | G106: 118.8
B107: Итого за обед: | D107: =D101+D102+D103+D104+D105+D106 -> 30.46 | E107: 29.52 | F107: 157.53 | G107: 950.91
B108: Итого за день: | D108: =D95+D99+D107 -> 50.54 | E108: =E95+E99+E107 -> 58.99 | F108: 277.93 | G108: 1751.24
B110: День 6 - завтрак
A111: №15 | B111: Сыр (порциями) | C111: 30 | D111: 4.5 | E111: 4.95 | F111: 1.05 | G111: 96.15
A112: №321 | B112: Гарнир сложный | C112: 200 | D112: 5.64 | E112: 9.28 | F112: 32.36 | G112: 223.6
A113: №288 | B113: Котлета куриная | C113: 100 | D113: 8.4 | E113: 5.4 | F113: 10.6 | G113: 125.2
B114: Хлеб пшеничный | C114: 70 | D114: 4.43 | E114: 1.96 | F114: 30.45 | G114: 137
A115: №382 | B115: Какао с молоком | C115: 200 | D115: 4.02 | E115: 3.94 | F115: 16.6 | G115: 116.8
B116: Итого за завтрак: | D116: =D111+D112+D113+D114+D115 -> 26.99 | E116: =E111+E112+E113+E114+E115 -> 25.53 | F116: 91.06 | G116: 698.75
B117: День 6 - 2-ой завтрак
A118: №338 | B118: Фрукт | C118: 100 | D118: 1.69 | E118: 0.2 | F118: 8.09 | G118: 37.8
A119: №389 | B119: Сок натуральный | C119: 200 | D119: 0 | E119: 0 | F119: 10.5 | G119: 42
B120: Итого за 2-ой завтрак | D120: =D118+D119 -> 1.69 | E120: =E118+E119 -> 0.2 | F120: 18.59 | G120: 79.8
B121: День 6 - обед
A122: №15 | B122: Огурцы свежие порционно | C122: 100 | D122: 0.8 | E122: 0.2 | F122: 2.5 | G122: 14
A123: №108 | B123: Суп картофельный с клецками на мкб со сметаной | C123: 250/15/10 | D123: 9.43 | E123: 8.6 | F123: 23.21 | G123: 217.76
A124: №302 | B124: Гречка отварная рассыпчатая со сливочным маслом | C124: 200 | D124: 9.14 | E124: 10.1 | F124: 44.9 | G124: 280.34
A125: №234 | B125: Биточки рыбные из минтая | C125: 100 | D125: 9.33 | E125: 6.1 | F125: 11.57 | G125: 182.5
B126: Хлеб ржано-пшеничный | C126: 70 | D126: 4.43 | E126: 1.96 | F126: 30.45 | G126: 137
A127: №342 | B127: Компот из свежих фруктов | C127: 200 | D127: 0.53 | E127: 0 | F127: 16.98 | G127: 68.14
B128: Итого за обед: | D128: =D122+D123+D124+D125+D126+D127 -> 33.66 | E128: =E122+E123+E124+E125+E126+E127 -> 26.96 | F128: 129.61 | G128: 899.74
B129: Итого за день: | D129: =D116+D120+D128 -> 62.34 | E129: =E116+E120+E128 -> 52.69 | F129: 239.26 | G129: 1678.29
B131: День 7- завтрак
A132: №219 | B132: Сырники из творога | C132: 100/20 | D132: 11.46 | E132: 7.68 | F132: 14.48 | G132: 247
A133: №182 | B133: Каша ячневая молочная со сливочным маслом | C133: 250/12 | D133: 6.95 | E133: 12.28 | F133: 39.78 | G133: 310.07
A134: №376 | B134: Чай с сахаром | C134: 200 | D134: 0.15 | E134: 0.04 | F134: 12.13 | G134: 55.16
B135: Хлеб пшеничный | C135: 70 | D135: 4.43 | E135: 1.96 | F135: 30.45 | G135: 137
B136: Итого за завтрак: | D136: =D132+D133+D134+D135 -> 22.99 | E136: 21.96 | F136: 108.07 | G136: 749.23
B137: День 7 - 2-ой завтрак
A138: №389 | B138: Сок натуральный | C138: 200 | D138: 0 | E138: 0 | F138: 10.5 | G138: 42
B139: Кондитерское изделие (Печенье) | C139: 50 | D139: 4 | E139: 6 | F139: 31 | G139: 200
B140: Итого за 2-ой завтрак | D140: 4 | E140: 6 | F140: 41.5 | G140: 242
B141: День 7 - обед
A142: № 71 | B142: Помидоры свежие порционно с маслом | C142: 100 | D142: 1.1 | E142: 5.2 | F142: 5.2 | G142: 74
A143: №102 | B143: Суп картофельный с бобовыми (гороховый) на мкб | C143: 250/15 | D143: 8.49 | E143: 10.3 | F143: 21.37 | G143: 183.61
A144: №287 | B144: Голубцы ленивые | C144: 250 | D144: 18.41 | E144: 14.87 | F144: 30.42 | G144: 383.46
B145: Хлеб ржано-пшеничный | C145: 70 | D145: 4.43 | E145: 1.96 | F145: 30.45 | G145: 137
A146: №349 | B146: Компот из сухофруктов | C146: 200 | D146: 0.05 | E146: 0 | F146: 17.86 | G146: 71.72
B147: Итого за обед: | D147: =D142+D143+D144+D145+D146 -> 32.48 | E147: 32.33 | F147: 124.42 | G147: 849.79
B148: Итого за день: | D148: =D136+D140+D147 -> 59.47 | E148: =E136+E140+E147 -> 60.29 | F148: 273.99 | G148: 1841.02
B150: День 8 - завтрак
A151: №20 | B151: Салат из свежих огурцов | C151: 100 | D151: 0.72 | E151: 6.7 | F151: 10.4 | G151: 90.82
A152: №309 | B152: Макаронные изделия отварные | C152: 200 | D152: 7.29 | E152: 8.49 | F152: 45.81 | G152: 272.82
A153: №243 | B153: Сосиска отварная с соусом | C153: 100/30 | D153: 15.66 | E153: 16.32 | F153: 16.64 | G153: 265.5
B154: Хлеб пшеничный | C154: 70 | D154: 4.43 | E154: 1.96 | F154: 30.45 | G154: 137
A155: №377 | B155: Чай с лимоном | C155: 200 | D155: 0.45 | E155: 0 | F155: 15.95 | G155: 60.7
B156: Итого за завтрак: | D156: =D151+D152+D153+D154+D155 -> 28.55 | E156: 33.47 | F156: 119.25 | G156: 826.84
B157: День 8 - 2ой завтрак
A158: №338 | B158: Фрукт | C158: 100 | D158: 1.69 | E158: 0.2 | F158: 8.09 | G158: 37.8
A159: №389 | B159: Сок натуральный | C159: 200 | D159: 0 | E159: 0 | F159: 10.5 | G159: 42
B160: Итого за 2-ой завтрак | D160: =D158+D159 -> 1.69 | E160: =E158+E159 -> 0.2 | F160: =F158+F159 -> 18.59 | G160: =G158+G159 -> 79.8
B161: День 8 - обед
A162: №45 | B162: Салат из белокочанной капусты | C162: 100 | D162: 1.42 | E162: 4.52 | F162: 9.65 | G162: 93.85
A163: №96 | B163: Рассольник ленинградский на мкб со сметаной | C163: 250/15/10 | D163: 6.43 | E163: 8.8 | F163: 19.4 | G163: 204.27
A164: №142 | B164: Картофель тушеный с овощами | C164: 200 | D164: 4.53 | E164: 6.12 | F164: 26.18 | G164: 183.42
A165: №271 | B165: Котлета из говядины | C165: 100 | D165: 10.61 | E165: 5.79 | F165: 11.72 | G165: 212.88
B166: Хлеб ржано-пшеничный | C166: 70 | D166: 4.43 | E166: 1.96 | F166: 30.45 | G166: 137
A167: №359 | B167: Кисель ягодный | C167: 200 | D167: 0 | E167: 0 | F167: 32.4 | G167: 118.8
B168: Итого за обед: | D168: =D162+D163+D164+D165+D166+D167 -> 27.42 | E168: =E162+E163+E164+E165+E166+E167 -> 27.19 | F168: 129.8 | G168: 950.22
B169: Итого за день: | D169: =D156+D160+D168 -> 57.66 | E169: =E156+E160+E168 -> 60.86 | F169: 267.64 | G169: 1856.86
B171: День 9 - завтрак
A172: №209 | B172: Яйцо отварное | C172: 40 | D172: 5 | E172: 4.6 | F172: 0.28 | G172: 62.8
A173: №183 | B173: Каша молочная пшенная со сливочным маслом | C173: 250/12 | D173: 8.05 | E173: 11.6 | F173: 44.96 | G173: 339.06
B174: Хлеб пшеничный | C174: 70 | D174: 4.43 | E174: 1.96 | F174: 30.45 | G174: 137
A175: №382 | B175: Какао с молоком | C175: 200 | D175: 4.02 | E175: 3.94 | F175: 16.6 | G175: 116.8
B176: Итого за завтрак: | D176: =D172+D173+D174+D175 -> 21.5 | E176: =E172+E173+E174+E175 -> 22.1 | F176: 92.29 | G176: 655.66
B177: День 9 - 2-ой завтрак
B178: Кондитерское изделие (Вафли) | C178: 50 | D178: 1.6 | E178: 6.3 | F178: 33 | G178: 195
A179: №389 | B179: Сок натуральный | C179: 200 | D179: 0 | E179: 0 | F179: 10.5 | G179: 42
B180: Итого за 2-ой завтрак | D180: =D178+D179 -> 1.6 | E180: =E178+E179 -> 6.3 | F180: 43.5 | G180: 237
B181: День 9 - обед
A182: №49 | B182: Салат "Витаминный" (капуста, морковь, яблоко) | C182: 100 | D182: 3.53 | E182: 5.33 | F182: 10.56 | G182: 97.12
A183: №101 | B183: Суп картофельный с крупой (гречневый) на мкб со сметаной | C183: 250/15/10 | D183: 7.72 | E183: 10.52 | F183: 30.62 | G183: 208.25
A184: №263 | B184: Рагу овощное с говядиной | C184: 250 | D184: 17.35 | E184: 17.23 | F184: 43.25 | G184: 369.68
B185: Хлеб ржано-пшеничный | C185: 70 | D185: 4.43 | E185: 1.96 | F185: 30.45 | G185: 137
A186: №342 | B186: Компот из свежих фруктов | C186: 200 | D186: 0.53 | E186: 0 | F186: 16.98 | G186: 68.14
B187: Итого за обед: | D187: =D182+D183+D184+D185+D186 -> 33.56 | E187: =E182+E183+E184+E185+E186 -> 35.04 | F187: 131.86 | G187: 880.19
B188: Итого за день: | D188: =D176+D180+D187 -> 56.66 | E188: =E176+E180+E187 -> 63.44 | F188: 267.65 | G188: 1772.85
B190: День 10 - завтрак
A191: №15 | B191: Сыр (порциями) | C191: 30 | D191: 4.5 | E191: 4.95 | F191: 1.05 | G191: 96.15
A192: №312 | B192: Пюре картофельное | C192: 200 | D192: 4.57 | E192: 9.46 | F192: 41.29 | G192: 185.64
A193: №301 | B193: Кнели куриные | C193: 100 | D193: 9.8 | E193: 6.2 | F193: 6.41 | G193: 195.82
A194: №376 | B194: Чай с сахаром | C194: 200 | D194: 0.15 | E194: 0.04 | F194: 12.13 | G194: 55.16
B195: Хлеб пшеничный | C195: 70 | D195: 4.43 | E195: 1.96 | F195: 30.45 | G195: 137
B196: Итого за завтрак: | D196: =D191+D192+D193+D194+D195 -> 23.45 | E196: 22.61 | F196: 91.33 | G196: =G191+G192+G193+G194+G195 -> 669.77
B197: День 10 - 2ой завтрак
A198: №389 | B198: Сок натуральный | C198: 200 | D198: 0 | E198: 0 | F198: 10.5 | G198: 42
B199: Кондитерское изделие | C199: 50 | D199: 4 | E199: 6 | F199: 31 | G199: 200
B200: Итого за 2-ой завтрак | D200: 4 | E200: 6 | F200: 41.5 | G200: 242
B201: День 10 - обед
A202: № 71 | B202: Помидоры свежие порционно | C202: 100 | D202: 1.1 | E202: 5.2 | F202: 5.2 | G202: 24
A203: №82 | B203: Борщ с капустой и картофелем на мкб со сметаной | C203: 250/15/10 | D203: 6.53 | E203: 9.28 | F203: 23.22 | G203: 191.02
A204: №304 | B204: Рис отварной | C204: 200 | D204: 4.93 | E204: 9.76 | F204: 49.64 | G204: 274.16
A205: №229 | B205: Рыба припущенная с овощами в сметанном соусе | C205: 100/50 | D205: 15.29 | E205: 8.76 | F205: 22.26 | G205: 229.04
B206: Хлеб ржано-пшеничный | C206: 70 | D206: 4.43 | E206: 1.96 | F206: 30.45 | G206: 137
A207: №349 | B207: Компот из сухофруктов | C207: 200 | D207: 0.05 | E207: 0 | F207: 17.86 | G207: 71.72
B208: Итого за обед: | D208: =D202+D203+D204+D205+D206+D207 -> 32.33 | E208: 34.96 | F208: 148.63 | G208: 926.94
B209: Итого за день: | D209: =D196+D200+D208 -> 59.78 | E209: =E196+E200+E208 -> 63.57 | F209: 281.46 | G209: 1838.71
B211: День 11 - завтрак
A212: №182 | B212: Каша геркулесовая молочная со сливочным маслом | C212: 250/12 | D212: 8.1 | E212: 16.61 | F212: 30.22 | G212: 302.83
... 74 more rows

Sheet 1
A2: План-меню
A3: День 1
A5: Наименование | B5: Ед. изм | C5: Норма закладки
A6: Каша молочная "Дружба" со сливочным маслом | B6: 250/12
A7: Молоко | B7: Гр | C7: 208
A8: Вода | B8: Гр | C8: 30
A9: Масло сливочное | B9: Гр | C9: 12
A10: Соль | B10: Гр | C10: 0.8
A11: Сахарный песок | B11: Гр | C11: 8
A12: Крупа рисовая | B12: Гр | C12: 17
A13: Оладьи со сгущенкой | B13: 80/20
A14: Мука пшеничная | B14: гр | C14: 45/45
A15: Яйцо | B15: гр | C15: 3
A16: Молоко | B16: гр | C16: 39/39
A17: Дрожжи | B17: гр | C17: 1
A18: Сахарный песок | B18: гр | C18: 1
A19: Соль | B19: гр | C19: 1
A20: Сгущенное молоко | B20: гр | C20: 20
A21: Масло растительное | B21: гр | C21: 4
A22: Хлеб пшеничный | B22: 70
A23: Фрукт | B23: гр | C23: 100
A24: Сок натуральный | B24: гр | C24: 200
A25: Помидоры свежие порционные с маслом | B25: гр | C25: 100
A26: Помидоры свежие | B26: гр | C26: 112/95
A27: Масло растительное | B27: гр | C27: 5
A28: Соль | B28: гр | C28: 2
A29: Суп картофельный с макар.изд. со сметаной | B29: 250/15/10
A30: Курица | B30: гр | C30: 42/29
A31: Картофель | B31: гр | C31: 123/74
A32: Лук репчатый | B32: гр
A33: Морковь свежая | B33: гр
A34: Масло растительное | B34: гр | C34: 4
A35: Вода | B35: гр | C35: 175
A36: Соль | B36: гр | C36: 2
A37: Вермишель | B37: гр | C37: 13
A38: Сметана | B38: гр | C38: 10
A39: Жаркое по-домашнему из говядины | B39: гр | C39: 250
A40: Говядина на кости | B40: гр | C40: 129/95
A41: Картофель | B41: гр | C41: 190/114
A42: Лук репчатый | B42: гр | C42: 17/14
A43: Морковь свежая | B43: гр | C43: 33/25
A44: Масло растительное | B44: гр | C44: 7
A45: Томатная паста | B45: гр | C45: 5
A46: Соль | B46: гр | C46: 1
A47: Вода | B47: гр | C47: 118
A48: Хлеб пшеничный | B48: 70
A49: Компот из сухофруктов | B49: гр | C49: 200
A50: Смесь компотная | B50: гр | C50: 20
A51: Сахарный песок | B51: гр | C51: 15
A52: Вода | B52: гр | C52: 210

Sheet 2
A3: План-меню
A4: 2день
A6: Наименование | B6: Ед. изм | C6: Норма закладки
A7: Сыр порционный | B7: гр | C7: 30
A8: Сыр | B8: гр | C8: 30
A9: Пюре картофельное | B9: гр | C9: 200
A10: Картофель | B10: гр | C10: 300/180
A11: Молоко | B11: гр | C11: 32
A12: Масло сливочное | B12: гр | C12: 8
A13: Соль | B13: гр | C13: 1
A14: Кнели куриные | B14: гр | C14: 100
A15: Курица | B15: гр | C15: 133/95
A16: Крупа рисовая | B16: гр | C16: 8
A17: Вода | B17: гр | C17: 10
A18: Масло сливочное | B18: гр | C18: 3
A19: Лук репчатый | B19: гр | C19: 9/8
A20: Соль | B20: гр | C20: 1
A21: Масло ратительное | B21: гр | C21: 2
A22: Хлеб пшеничный | B22: 70
A23: Чай с лимоном | B23: гр | C23: 200
A24: Чай-заварка | B24: гр | C24: 0,7
A25: Сахарный песок | B25: гр | C25: 15
A26: Вода | B26: гр | C26: 10
A27: Лимон | B27: гр | C27: 6/5
A28: Сок натуральный | B28: гр | C28: 200
A29: Кондитерское изделие (печенье) | B29: гр | C29: 50
A30: Салат из белокочанной капусты | B30: гр | C30: 100
A31: Капуста | B31: гр | C31: 100/80
A32: Морковь | B32: гр | C32: 18/14
A33: Масло растительное | B33: гр | C33: 6
A34: Сахарный песок | B34: гр | C34: 6
A35: Соль | B35: гр | C35: 1
A36: Рассольник "Ленинградский" со сметаной | B36: гр | C36: 215/15/10
A37: Говядина на кости | B37: гр | C37: 32/24
A38: Картофель | B38: гр | C38: 125/75
A39: Крупа перловая | B39: гр | C39: 5
A40: Морковь свежая | B40: гр | C40: 13/10
A41: Лук репчатый | B41: гр | C41: 6/5
A42: Огурцы соленые | B42: гр | C42: 13/12
A43: Масло растительное | B43: гр | C43: 2
A44: Томатная паста | B44: гр | C44: 4
A45: Соль | B45: гр | C45: 2
A46: Вода | B46: гр | C46: 180
A47: Сметана | B47: гр | C47: 10
A48: Рис отварной | B48: гр | C48: 200
A49: Крупа рисовая | B49: гр | C49: 69
A50: Масло сливочное | B50: гр | C50: 10
A51: Соль | B51: гр | C51: 2
A52: Рыба припущенная с овощами в сметанном соусе | B52: гр | C52: 100/50
A53: Минтай с/мороженный | B53: гр | C53: 165/124
A54: Морковь | B54: гр | C54: 12/9
A55: Лук пепчатый | B55: гр | C55: 5/4
A56: Сметана | B56: гр | C56: 10
A57: Масло растительное | B57: гр | C57: 3
A58: Соль | B58: гр | C58: 2
A59: Вода | B59: гр | C59: 18
A60: Мука | B60: гр | C60: 2
A61: Масло растительное | B61: гр | C61: 4
A62: Хлеб пшеничный | B62: 70
A63: Кисель ягодный | B63: гр | C63: 200
A64: Концентрат кисель | B64: гр | C64: 24
A65: Сахарный песок | B65: гр | C65: 15
A66: Вода | B66: гр | C66: 200

Sheet 3
A2: План-меню
A3: 3день
A5: Наименование | B5: Ед. изм | C5: Норма закладки
A6: Запеканка из творога со сгущенкой | B6: гр | C6: 80/20
A7: Творог | B7: гр | C7: 73
A8: Манная крупа | B8: гр | C8: 5
A9: Вода | B9: гр | C9: 20
A10: Сметана | B10: гр | C10: 4
A11: Яйцо | B11: гр | C11: 4
A12: Сахарный песок | B12: гр | C12: 7
A13: Масло сливочное | B13: гр | C13: 4
A14: Молоко сгущенное | B14: гр | C14: 20
A15: Мука | B15: гр | C15: 4
A16: Каша манная молочная со сливочным маслом | B16: гр | C16: 250/12
A17: Молоко | B17: гр | C17: 125
A18: Вода | B18: гр | C18: 80
A19: Манная крупа | B19: гр | C19: 25
A20: Сахарный песок | B20: гр | C20: 6
A21: Соль | B21: гр | C21: 2
A22: Масло сливочное | B22: гр | C22: 12
A23: Хлеб пшеничный | B23: 70
A24: Какао с молоком | B24: гр | C24: 200
A25: Какао с молоком | B25: гр | C25: 2
A26: Сахарный песок | B26: гр | C26: 15
A27: Молоко | B27: гр | C27: 150
A28: Вода | B28: гр | C28: 70
A29: Сок натуральный | B29: гр | C29: 200
A30: Кондитерское изделие | B30: гр | C30: 50
A31: Салат из свежих огурцов | B31: гр | C31: 100
A32: Огурцы свежие | B32: гр | C32: 100/95
A33: Масло растительное | B33: гр | C33: 5
A34: Соль | B34: гр | C34: 2
A35: Суп картофельный с рисом со сметаной | B35: гр | C35: 250/15/10
A36: Говядина на кости | B36: гр | C36: 32/24
A37: Картофель | B37: гр | C37: 125/75
A38: Лук репчатый | B38: гр | C38: 13/10
A39: Морковь | B39: гр | C39: 13/10
A40: Крупа рисовая | B40: гр | C40: 10
A41: Масло растительное | B41: гр | C41: 2
A42: Вода | B42: гр | C42: 200
A43: Соль | B43: гр | C43: 2
A44: Сметана | B44: гр | C44: 10
A45: Пюре гороховое | B45: гр | C45: 200
A46: Горох | B46: гр | C46: 100
A47: Масло сливочное | B47: гр | C47: 7
A48: Соль | B48: гр | C48: 2
A49: Вода | B49: гр | C49: 200
A50: Котлета из говядины | B50: гр | C50: 100
A51: Мясо на кости | B51: гр | C51: 99/73
A52: Хлеб пшеничный | B52: гр | C52: 18
A53: Вода | B53: гр | C53: 15
A54: Лук репчатый | B54: гр | C54: 9/8
A55: Мука | B55: гр | C55: 6
A56: Соль | B56: гр | C56: 0,8
A57: масло растительное | B57: гр | C57: 2
A58: Хлеб пшеничный | B58: 70
A59: Компот из свежих фруктов | B59: гр | C59: 200
A60: Яблоки | B60: гр | C60: 51/43
A61: Сахарный пеок | B61: гр | C61: 15
A62: Вода | B62: гр | C62: 203

Sheet 4
A2: План-меню
A3: 4день
A5: Наименование | B5: Ед. изм | C5: Норма закладки
A6: Оладьи с повидлом | B6: гр | C6: 100/20
A7: Мука | B7: гр | C7: 56
A8: Яйцо | B8: гр | C8: 4
A9: Молоко | B9: гр | C9: 49
A10: Дрожжи | B10: гр | C10: 1,2
A11: Сахарный песок | B11: гр | C11: 1,2
A12: Соль | B12: гр | C12: 1,2
A13: Повидло | B13: гр | C13: 20
A14: Масло растительное | B14: гр | C14: 5
A15: Макаронные изделия отварные | B15: гр | C15: 200
A16: Макаронные изделия | B16: гр | C16: 70
A17: Масло сливочное | B17: гр | C17: 10
A18: Соль | B18: гр | C18: 2
A19: Сосиска отварная с соусом | B19: гр | C19: 100/30
A20: Сосиска | B20: гр | C20: 104/100
A21: Соус томатный с овощами | B21: гр | C21: 30
A22: Вода | B22: гр | C22: 30
A23: Морковь | B23: гр | C23: 5/4
A24: Масло сливочное | B24: гр | C24: 2
A25: Лук репчатый | B25: гр | C25: 2/1
A26: Томатная паста | B26: гр | C26: 4
A27: Мука | B27: гр | C27: 2
A28: Соль | B28: гр | C28: 0,5
A29: Хлеб пшеничный | B29: 70
A30: Чай с сахаром | B30: гр | C30: 200
A31: Чай заварка | B31: гр | C31: 0,7
A32: Сахарный песок | B32: гр | C32: 15
A33: Вода | B33: гр | C33: 210
A34: Сок натуральный | B34: гр | C34: 200
A35: Фрукт | B35: гр | C35: 100
A36: Помидоры свежие | B36: гр | C36: 100
A37: Помидоры свежие | B37: гр | C37: 118/100
A38: Борщ с капустой и картофелем со сметаной | B38: гр | C38: 250/15/10
A39: Говядина на кости | B39: гр | C39: 32/24
A40: Свекла | B40: гр | C40: 50/40
A41: Капуста | B41: гр | C41: 25/20
A42: Картофель | B42: гр | C42: 35/21
A43: Морковь | B43: гр | C43: 13/10
A44: Лук репчатый | B44: гр | C44: 12/10
A45: Томатная паста | B45: гр | C45: 8
A46: Сахарный песок | B46: гр | C46: 3
A47: Соль | B47: гр | C47: 2
A48: Масло растительное | B48: гр | C48: 2
A49: Вода | B49: гр | C49: 180
A50: Сметана | B50: гр | C50: 10
A51: Плов из говядины | B51: гр | C51: 250
A52: Крупа рисовая | B52: гр | C52: 48
A53: Говядина на кости | B53: гр | C53: 87/65
A54: Лук репчатый | B54: гр | C54: 8/6
A55: Морковь | B55: гр | C55: 13/10
A56: Масло растительное | B56: гр | C56: 8
A57: Соль | B57: гр | C57: 2
A58: Вода | B58: гр | C58: 130
A59: Хлеб пшеничный | B59: 70
A60: Компот из сухофруктов | B60: гр | C60: 200
A61: Смесь компотная | B61: гр | C61: 20
A62: Сахарный песок | B62: гр | C62: 15
A63: Вода | B63: гр | C63: 210

Sheet 5
A2: План-меню
A3: 5день
A5: Наименование | B5: Ед. изм | C5: Норма закладки
A6: Каша геркулесовая молочная со сливочным | B6: гр | C6: 250/12
A7: Молоко | B7: гр | C7: 208
A8: Вода | B8: гр | C8: 30
A9: Масло сливочное | B9: гр | C9: 12
A10: Соль | B10: гр | C10: 0,8
A11: Сахар | B11: гр | C11: 8
A12: Крупа геркулесовая | B12: гр | C12: 28
A13: Яйцо отварное | B13: гр | C13: 40
A14: Яйцо куриное | B14: гр | C14: 40
A15: Хлеб пшеничный | B15: 70
A16: Чай с лимоном | B16: гр | C16: 200
A17: Чай-заварка | B17: гр | C17: 0,7
A18: Сахарный песок | B18: гр | C18: 15
A19: Вода | B19: гр | C19: 10
A20: Лимон | B20: гр | C20: 6/5
A21: Сок натуральный | B21: гр | C21: 200
A22: Кондитерское изделие (вафли) | B22: гр | C22: 50
A23: Салат овощной с яблоками | B23: гр | C23: 100
A24: Свекла | B24: гр | C24: 22/17
A25: Морковь | B25: гр | C25: 16/13
A26: Капуста | B26: гр | C26: 38/30
A27: Яблоки | B27: гр | C27: 47/33
A28: Лимон | B28: гр | C28: 20/8
A29: Щи из свежей капусты на мкб со сметаной | B29: 250/15/10
A30: Говядина на кости | B30: гр | C30: 32/24
A31: Капуста | B31: гр | C31: 63/50
A32: Картофель | B32: гр | C32: 50/30
A33: Морковь | B33: гр | C33: 13/10
A34: Лук | B34: гр | C34: 12/10
A35: Томатная паста | B35: гр | C35: 5
A36: Масло растительное | B36: гр | C36: 2
A37: Соль | B37: гр | C37: 2
A38: Вода | B38: гр | C38: 200
A39: Сметана | B39: гр | C39: 10
A40: Картофельное пюре | B40: гр | C40: 200
A41: Картофель | B41: гр | C41: 300/180
A42: Молоко | B42: гр | C42: 32
A43: Масло сливочное | B43: гр | C43: 8
A44: Соль | B44: гр | C44: 1
A45: Тефтели мясные | B45: гр | C45: 100
A46: Говядина на кости | B46: гр | C46: 86/63
A47: Крупа рисовая | B47: гр | C47: 8/25
A48: Вода | B48: гр | C48: 10
A49: Лук репчатый | B49: гр | C49: 21/18
A50: Масло сливочное | B50: гр | C50: 7
A51: Мука | B51: гр | C51: 7
A52: Соль | B52: гр | C52: 0,8
A53: Хлеб ржано- пшеничный | B53: 70
A54: Кисель ягодный | B54: гр | C54: 200
A55: Концентрат кисель | B55: гр | C55: 24
A56: Сахарный песок | B56: гр | C56: 15
A57: Вода | B57: гр | C57: 200

Sheet 6
A2: План-меню
A3: 6 день
A5: Наименование | B5: Ед. изм | C5: Норма закладки
A6: Сыр порционно | B6: гр | C6: 30
A7: Сыр порционно | B7: гр | C7: 30
A8: Гарнир сложный | B8: гр | C8: 200
A9: Картофельное пюре: | B9: гр | C9: 150
A10: Картофель | B10: гр | C10: 224/135
A11: Молоко | B11: гр | C11: 24
A12: Масло сливочное | B12: гр | C12: 8
A13: Соль | B13: гр | C13: 1
A14: Капуста тушеная: | B14: гр | C14: 50
A15: Капуста тушеная: | B15: гр | C15: 71/57
A16: Раствор лимонной кислоты | B16: гр | C16: 1,5
A17: Масло растительное | B17: гр | C17: 2
A18: Томатное пюре | B18: гр | C18: 3
A19: Морковь | B19: гр | C19: 2/1
A20: Лук | B20: гр | C20: 3/2
A21: Лавровый лист | B21: гр | C21: 0,004
A22: Мука | B22: гр | C22: 0,5
A23: Сахарный песок | B23: гр | C23: 1,5
A24: Соль | B24: гр | C24: 0,5
A25: Котлета куриная | B25: гр | C25: 100
A26: Куры бройлер | B26: гр | C26: 118/79
A27: Лук репчатый | B27: гр | C27: 8/7
A28: Соль | B28: гр | C28: 1
A29: Хлеб | B29: гр | C29: 6/11
A30: Сухари панировочные | B30: гр | C30: 6
A31: Яйцо | B31: гр | C31: 2
A32: Масло растительное | B32: гр | C32: 2
A33: Хлеб пшеничный | B33: 70
A34: Какао с молоком | B34: гр | C34: 200
A35: Какао с молоком | B35: гр | C35: 2
A36: Сахарный песок | B36: гр | C36: 15
A37: Молоко | B37: гр | C37: 150
A38: Вода | B38: гр | C38: 70
A39: Фрукт | B39: гр | C39: 100
A40: Сок натуральный | B40: гр | C40: 200
A41: Огурцы свежие порционные | B41: гр | C41: 100
A42: Огурцы свежие порционные | B42: гр | C42: 108/100
A43: Суп картофельный с клецками со сметаной | B43: гр | C43: 250/15/10
A44: Курица | B44: гр | C44: 42/29
A45: Картофельное пюре: | B45: гр | C45: 83/50
A46: Морковь | B46: гр | C46: 12/10
A47: Лук репчатый | B47: гр | C47: 12/10
A48: Масло растительное | B48: гр | C48: 2
A49: Вода | B49: гр | C49: 250
A50: Соль | B50: гр | C50: 1
A51: Сметана | B51: гр | C51: 10
A52: Клецки: | B52: гр | C52: 40
A53: Яйцо | B53: гр | C53: 3
A54: Масло сливочное | B54: гр | C54: 1
A55: Вода | B55: гр | C55: 19
A56: Мука | B56: гр | C56: 12
A57: Соль | B57: гр | C57: 0,3
A58: Гречка отварная рассыпчатая со сливочным маслом | B58: гр | C58: 200
A59: Гречка отварная рассыпчатая со сливочным маслом | B59: гр | C59: 90
A60: Соль | B60: гр | C60: 2
A61: масло сливочное | B61: гр | C61: 11
A62: Биточки рыбные из минтая | B62: гр | C62: 100
A63: Минтай | B63: гр | C63: 128/78
A64: Хлеб | B64: гр | C64: 12
A65: Вода | B65: гр | C65: 45
A66: Лук | B66: гр | C66: 24/20
A67: Яйцо | B67: гр | C67: 5
A68: Сухари панировочные | B68: гр | C68: 8
A69: Соль | B69: гр | C69: 0,8
A70: Масло растительное | B70: гр | C70: 1
A71: Хлеб ржано- пшеничный | B71: 70
A72: Компот из свежих фруктов | B72: гр | C72: 200
A73: Яблоки | B73: гр | C73: 51/43
A74: Сахарный пеок | B74: гр | C74: 15
A75: Вода | B75: гр | C75: 203

Sheet 7
A2: План-меню
A3: 7 день
A5: Наименование | B5: Ед. изм | C5: Норма закладки
A6: Сырники из творога | B6: гр | C6: 100/20
A7: Творог | B7: гр | C7: 102/100
A8: Мука | B8: гр | C8: 13
A9: Яйцо | B9: гр | C9: 4
A10: Масло растительное | B10: гр | C10: 4
A11: Молоко сгущенное | B11: гр | C11: 20
A12: Каша ячневая молочная с маслом | B12: гр | C12: 250/12
A13: Молоко сгущенное | B13: гр | C13: 125
A14: Вода | B14: гр | C14: 80
A15: Манная крупа | B15: гр | C15: 25
A16: Сахар | B16: гр | C16: 6
A17: Соль | B17: гр | C17: 2
A18: Масло сливочное | B18: гр | C18: 12
A19: Чай с сахаром | B19: гр | C19: 200
A20: Чай-заварка | B20: гр | C20: 0,7
A21: Сахарный песок | B21: гр | C21: 15
A22: Вода | B22: гр | C22: 210
A23: Хлеб пшеничный | B23: 70
A24: Сок натуральный | B24: гр | C24: 200
A25: Кондитерское изделие (печенье) | B25: гр | C25: 50
A26: Помидоры свежие порционные с маслом | B26: гр
A27: Помидоры свежие | B27: гр | C27: 105/95
A28: Масло растительное | B28: гр | C28: 5
A29: Соль | B29: гр | C29: 2
A30: Суп картофельный с бобовыми (гороховый) на мкб | B30: гр | C30: 250/15/
A31: Говядина на кости | B31: гр | C31: 32/24
A32: Горох | B32: гр | C32: 12
A33: Картофель | B33: гр | C33: 83/50
A34: Лук репчатый | B34: гр | C34: 12/10
A35: Морковь | B35: гр | C35: 12/10
A36: Масло растительное | B36: гр | C36: 2
A37: Вода | B37: гр | C37: 200
A38: Соль | B38: гр | C38: 2
A39: Голубцы ленивые | B39: гр | C39: 250
A40: Говядина на кости | B40: гр | C40: 96/71
A41: Капуста | B41: гр | C41: 169/135
A42: Лук репчатый | B42: гр | C42: 17/14
A43: Морковь | B43: гр | C43: 24/18
A44: Рисовая крупа | B44: гр | C44: 10
A45: Соль | B45: гр | C45: 1,3
A46: Масло сливочное | B46: гр | C46: 4
A47: Хлеб ржано- пшеничный | B47: 70
A48: Компот из сухофруктов | B48: гр | C48: 200
A49: Смесь компотная | B49: гр | C49: 20
A50: Сахарный песок | B50: гр | C50: 15
A51: Вода | B51: гр | C51: 210

Sheet 8
A2: План-меню
A3: 8 день
A5: Наименование | B5: Ед. изм | C5: Норма закладки
A6: Салат из свежих огурцов | B6: гр | C6: 100
A7: Огурцы свежие | B7: гр | C7: 100/95
A8: Масло растительное | B8: гр | C8: 5
A9: Соль | B9: гр | C9: 2
A10: Макаронные изделия отварные | B10: гр | C10: 200
A11: Макаронные изделия | B11: гр | C11: 70
A12: Масло сливочное | B12: гр | C12: 10
A13: Соль | B13: гр | C13: 2
A14: Сосиска отварная с соусом | B14: гр | C14: 100/30
A15: Сосиска | B15: гр | C15: 104/100
A16: Соус томатный с овощами | B16: гр | C16: 30
A17: Вода | B17: гр | C17: 30
A18: Морковь | B18: гр | C18: 5/4
A19: Масло сливочное | B19: гр | C19: 2
A20: Лук репчатый | B20: гр | C20: 2/1
A21: Томатная паста | B21: гр | C21: 4
A22: Мука | B22: гр | C22: 2
A23: Соль | B23: гр | C23: 0,5
A24: Хлеб пшеничный | B24: 70
A25: Чай с лимоном | B25: гр | C25: 200
A26: Чай-заварка | B26: гр | C26: 0,7
A27: Сахарный песок | B27: гр | C27: 15
A28: Вода | B28: гр | C28: 10
A29: Лимон | B29: гр | C29: 6/5
A30: Фрукт | B30: гр | C30: 100
A31: Сок натуральный | B31: гр | C31: 200
A32: Салат из белокочанной капусты | B32: гр | C32: 100
A33: Капуста | B33: гр | C33: 100/80
A34: Морковь | B34: гр | C34: 18/14
A35: Масло растительное | B35: гр | C35: 6
A36: Сахарный песок | B36: гр | C36: 6
A37: Соль | B37: гр | C37: 1
A38: Рассольник "Ленинградский" со сметаной | B38: гр | C38: 215/15/10
A39: Говядина на кости | B39: гр | C39: 32/24
A40: Картофель | B40: гр | C40: 125/75
A41: Крупа перловая | B41: гр | C41: 5
A42: Морковь свежая | B42: гр | C42: 13/10
A43: Лук репчатый | B43: гр | C43: 6/5
A44: Огурцы соленые | B44: гр | C44: 13/12
A45: Масло растительное | B45: гр | C45: 2
A46: Томатная паста | B46: гр | C46: 4
A47: Соль | B47: гр | C47: 2
A48: Вода | B48: гр | C48: 180
A49: Сметана | B49: гр | C49: 10
A50: Картофель тушеный с овощами | B50: гр | C50: 200
A51: Картофель | B51: гр | C51: 325/195
A52: Морковь | B52: гр | C52: 33/25
A53: Лук репчатый | B53: гр | C53: 24/20
A54: Масло растительное | B54: гр | C54: 15
A55: Соль | B55: гр | C55: 2
A56: Томатная паста | B56: гр | C56: 8
A57: Вода | B57: гр | C57: 80
A58: Котлета говяжья | B58: гр | C58: 100
A59: Мясо говядины | B59: гр | C59: 99/73
A60: Хлеб пшеничный | B60: гр | C60: 18
A61: Вода | B61: гр | C61: 15
A62: Лук репчатый | B62: гр | C62: 9/8
A63: Мука | B63: гр | C63: 6
A64: Соль | B64: гр | C64: 0,8
A65: Масло растительное | B65: гр | C65: 2
A66: Хлеб ржано- пшеничный | B66: 70
A67: Кисель ягодный | B67: гр | C67: 200
A68: Концентрат кисель | B68: гр | C68: 24
A69: Сахарный песок | B69: гр | C69: 15
A70: Вода | B70: гр | C70: 200

Sheet 9
A2: План-меню
A3: 9 день
A5: Наименование | B5: Ед. изм | C5: Норма закладки
A6: Яйцо отварное | B6: гр | C6: 40
A7: Яйцо куриное | B7: гр | C7: 40
A8: Каша молочная пшенная со сливочным маслом | B8: гр | C8: 250/12
A9: Молоко | B9: гр | C9: 125
A10: Вода | B10: гр | C10: 80
A11: Пшено | B11: гр | C11: 30
A12: Масло сливочное | B12: гр | C12: 12
A13: Соль | B13: гр | C13: 0,8
A14: Сахарный песок | B14: гр | C14: 8
A15: Хлеб пшеничный | B15: 70
A16: Какао с молоком | B16: гр | C16: 200
A17: Какао с молоком | B17: гр | C17: 2
A18: Сахарный песок | B18: гр | C18: 15
A19: Молоко | B19: гр | C19: 150
A20: Вода | B20: гр | C20: 70
A21: Кондитерское изделие (вафли) | B21: гр | C21: 50
A22: Сок натуральный | B22: гр | C22: 200
A23: Салат "Витаминный" | B23: гр | C23: 100
A24: Капуста | B24: гр | C24: 56/45
A25: Морковь | B25: гр | C25: 19/15
A26: Яблоки свежие | B26: гр | C26: 38/25
A27: Лук репчатый | B27: гр | C27: 6/5
A28: Чеснок | B28: гр | C28: 2/1
A29: Сахарный песок | B29: гр | C29: 5
A30: Масло растительное | B30: гр | C30: 5
A31: Суп картофельный с крупой (гречневый) со сметаной на мкб | B31: гр | C31: 250/15/10
A32: Говядина на кости | B32: гр | C32: 32/24
A33: Картофель | B33: гр | C33: 125/75
A34: Морковь | B34: гр | C34: 13/10
A35: Лук репчатый | B35: гр | C35: 13/10
A36: Гречка | B36: гр | C36: 10
A37: Масло растительное | B37: гр | C37: 2
A38: Соль | B38: гр | C38: 2
A39: Вода | B39: гр | C39: 200
A40: Сметана | B40: гр | C40: 10
A41: Рагу овощное с говядиной | B41: гр | C41: 250
A42: Говядина на кости | B42: гр | C42: 156/115
A43: Картофель | B43: гр | C43: 72/43
A44: Капуста | B44: гр | C44: 54/43
A45: Морковь | B45: кг | C45: 25/19
A46: Лук репчатый | B46: гр | C46: 14/11
A47: Масло сливочное | B47: гр | C47: 5
A48: Томатная паста | B48: гр | C48: 6
A49: Мука | B49: гр | C49: 2
A50: Соль | B50: гр | C50: 0,5
A51: Вода | B51: гр | C51: 45
A52: Хлеб ржано- пшеничный | B52: 70
A53: Компот из свежих фруктов | B53: гр | C53: 200
A54: Яблоки | B54: гр | C54: 51/43
A55: Сахарный пеок | B55: гр | C55: 15
A56: Вода | B56: гр | C56: 203

Sheet 10
A2: План-меню
A3: 10 день
A5: Наименование | B5: Ед. изм | C5: Норма закладки
A6: Сыр порционный | B6: гр | C6: 30
A7: Сыр | B7: гр | C7: 30
A8: Пюре картофельное | B8: гр | C8: 200
A9: Картофель | B9: гр | C9: 300/180
A10: Молоко | B10: гр | C10: 32
A11: Масло сливочное | B11: гр | C11: 8
A12: Соль | B12: гр | C12: 1
A13: Кнели куриные | B13: гр | C13: 100
A14: Курица | B14: гр | C14: 133/95
A15: Крупа рисовая | B15: гр | C15: 8
A16: Вода | B16: гр | C16: 10
A17: Масло сливочное | B17: гр | C17: 3
A18: Лук репчатый | B18: гр | C18: 9/8
A19: Соль | B19: гр | C19: 1
A20: Масло ратительное | B20: гр | C20: 2
A21: Чай с сахаром | B21: гр | C21: 200
A22: Чай-заварка | B22: гр | C22: 0,7
A23: Сахарный песок | B23: гр | C23: 15
A24: Вода | B24: гр | C24: 210
A25: Хлеб пшеничный | B25: 70
A26: Кондитерское изделие | B26: гр | C26: 50
A27: Сок натуральный | B27: гр | C27: 200
A28: Помидоры свежие порционные | B28: гр | C28: 100
A29: Помидоры свежие | B29: гр | C29: 118/100
A30: Борщ с капустой и картофелем со сметаной | B30: гр | C30: 250/15/10
A31: Говядина на кости | B31: гр | C31: 32/24
A32: Свекла | B32: гр | C32: 50/40
A33: Капуста | B33: гр | C33: 25/20
A34: Картофель | B34: гр | C34: 35/21
A35: Морковь | B35: гр | C35: 13/10
A36: Лук репчатый | B36: гр | C36: 12/10
A37: Томатная паста | B37: гр | C37: 8
A38: Сахарный песок | B38: гр | C38: 3
A39: Соль | B39: гр | C39: 2
A40: Масло растительное | B40: гр | C40: 2
A41: Вода | B41: гр | C41: 180
A42: Сметана | B42: гр | C42: 10
A43: Рис отварной | B43: гр | C43: 200
A44: Крупа рисовая | B44: гр | C44: 69
A45: Масло сливочное | B45: гр | C45: 10
A46: Соль | B46: гр | C46: 2
A47: Рыба припущенная с овощами в сметанном соусе | B47: гр | C47: 100/50
A48: Минтай с/мороженный | B48: гр | C48: 165/124
A49: Морковь | B49: гр | C49: 12/9
A50: Лук пепчатый | B50: гр | C50: 5/4
A51: Сметана | B51: гр | C51: 10
A52: Масло растительное | B52: гр | C52: 3
A53: Соль | B53: гр | C53: 2
A54: Вода | B54: гр | C54: 18
A55: Мука | B55: гр | C55: 2
A56: Масло растительное | B56: гр | C56: 4
A57: Хлеб пшеничный | B57: 70
A58: Кисель ягодный | B58: гр | C58: 200
A59: Концентрат кисель | B59: гр | C59: 24
A60: Сахарный песок | B60: гр | C60: 15
A61: Вода | B61: гр | C61: 200

Sheet 11
A2: План-меню
A3: 11 день
A5: Наименование | B5: Ед. изм | C5: Норма закладки
A6: Каша геркулесовая молочная со сливочным | B6: гр | C6: 250/12
A7: Молоко | B7: гр | C7: 208
A8: Вода | B8: гр | C8: 30
A9: Масло сливочное | B9: гр | C9: 12
A10: Соль | B10: гр | C10: 0,8
A11: Сахар | B11: гр | C11: 8
A12: Крупа геркулесовая | B12: гр | C12: 28
A13: Оладьи со сгущенкой | B13: 80/20
A14: Мука пшеничная | B14: гр | C14: 45/45
A15: Яйцо | B15: гр | C15: 3
A16: Молоко | B16: гр | C16: 39/39
A17: Дрожжи | B17: гр | C17: 1
A18: Сахарный песок | B18: гр | C18: 1
A19: Соль | B19: гр | C19: 1
A20: Сгущенное молоко | B20: гр | C20: 20
A21: Масло растительное | B21: гр | C21: 4
A22: Хлеб пшеничный | B22: 70
A23: Чай без сахара | B23: гр | C23: 200
A24: Чай-заварка | B24: гр | C24: 0,7
A25: Вода | B25: гр | C25: 210
A26: Сок натуральный | B26: гр | C26: 200
A27: Фрукт | B27: гр | C27: 100
A28: Огурцы порционные с маслом | B28: гр | C28: 100
A29: Огурцы свежие | B29: гр | C29: 100/95
A30: Масло растительное | B30: гр | C30: 5
A31: Соль | B31: гр | C31: 2
A32: Суп картофельный с макар.изд. со сметаной | B32: 250/15/10
A33: Курица | B33: гр | C33: 42/29
A34: Картофель | B34: гр | C34: 123/74
A35: Лук репчатый | B35: гр
A36: Морковь свежая | B36: гр
A37: Масло растительное | B37: гр | C37: 4
A38: Вода | B38: гр | C38: 175
A39: Соль | B39: гр | C39: 2
A40: Вермишель | B40: гр | C40: 13
A41: Сметана | B41: гр | C41: 10
A42: Пюре гороховое | B42: гр | C42: 200
A43: Горох | B43: гр | C43: 100
A44: Масло сливочное | B44: гр | C44: 7
A45: Соль | B45: гр | C45: 2
A46: Вода | B46: гр | C46: 200
A47: Тефтели мясные | B47: гр | C47: 100
A48: Говядина на кости | B48: гр | C48: 86/63
A49: Крупа рисовая | B49: гр | C49: 8/25
A50: Вода | B50: гр | C50: 10
A51: Лук репчатый | B51: гр | C51: 21/18
A52: Масло сливочное | B52: гр | C52: 7
A53: Мука | B53: гр | C53: 7
A54: Соль | B54: гр | C54: 0,8
A55: Хлеб ржано-пшеничный | B55: 70
A56: Кисель ягодный | B56: гр | C56: 200
A57: Концентрат кисель | B57: гр | C57: 24
A58: Сахарный песок | B58: гр | C58: 15
A59: Вода | B59: гр | C59: 200

Sheet 12
A2: План-меню
A3: 12 день
A5: Наименование | B5: Ед. изм | C5: Норма закладки
A6: Салат из свежих помидоров | B6: гр | C6: 100
A7: Помидоры свежие | B7: гр | C7: 112/95
A8: Масло растительное | B8: гр | C8: 5
A9: Соль | B9: гр | C9: 2
A10: Гарнир сложный | B10: гр | C10: 200
A11: Картофельное пюре: | B11: гр | C11: 150
A12: Картофель | B12: гр | C12: 224/135
A13: Молоко | B13: гр | C13: 24
A14: Масло сливочное | B14: гр | C14: 8
A15: Соль | B15: гр | C15: 1
A16: Капуста тушеная: | B16: гр | C16: 50
A17: Капуста тушеная: | B17: гр | C17: 71/57
A18: Раствор лимонной кислоты | B18: гр | C18: 1,5
A19: Масло растительное | B19: гр | C19: 2
A20: Томатное пюре | B20: гр | C20: 3
A21: Морковь | B21: гр | C21: 2/1
A22: Лук | B22: гр | C22: 3/2
A23: Лавровый лист | B23: гр | C23: 0,004
A24: Мука | B24: гр | C24: 0,5
A25: Сахарный песок | B25: гр | C25: 1,5
A26: Соль | B26: гр | C26: 0,5
A27: Котлета куриная | B27: гр | C27: 100
A28: Куры бройлер | B28: гр | C28: 118/79
A29: Лук репчатый | B29: гр | C29: 8/7
A30: Соль | B30: гр | C30: 1
A31: Хлеб | B31: гр | C31: 6/11
A32: Сухари панировочные | B32: гр | C32: 6
A33: Яйцо | B33: гр | C33: 2
A34: Масло растительное | B34: гр | C34: 2
A35: Хлеб пшеничный | B35: 70
A36: Чай с лимоном | B36: гр | C36: 200
A37: Чай-заварка | B37: гр | C37: 0,7
A38: Сахарный песок | B38: гр | C38: 15
A39: Вода | B39: гр | C39: 10
A40: Лимон | B40: гр | C40: 6/5
A41: Сок натуральный | B41: гр | C41: 200
A42: Кондитерское изделие (печенье) | B42: гр | C42: 50
A43: Салат из белокочанной капусты | B43: гр | C43: 100
A44: Капуста | B44: гр | C44: 100/80
A45: Морковь | B45: гр | C45: 18/14
A46: Масло растительное | B46: гр | C46: 6
A47: Сахарный песок | B47: гр | C47: 6
A48: Соль | B48: гр | C48: 1
A49: Суп картофельный с клецками со сметаной | B49: гр | C49: 250/15/10
A50: Курица | B50: гр | C50: 42/29
A51: Картофельное пюре: | B51: гр | C51: 83/50
A52: Морковь | B52: гр | C52: 12/10
A53: Лук репчатый | B53: гр | C53: 12/10
A54: Масло растительное | B54: гр | C54: 2
A55: Вода | B55: гр | C55: 250
A56: Соль | B56: гр | C56: 1
A57: Сметана | B57: гр | C57: 10
A58: Клецки: | B58: гр | C58: 40
A59: Яйцо | B59: гр | C59: 3
A60: Масло сливочное | B60: гр | C60: 1
A61: Вода | B61: гр | C61: 19
A62: Мука | B62: гр | C62: 12
A63: Соль | B63: гр | C63: 0,3
A64: Плов из говядины с гречкой | B64: гр | C64: 250
A65: Гречка | B65: гр | C65: 86
A66: Говядина на кости | B66: гр | C66: 110/81
A67: Лук | B67: гр | C67: 10/8
A68: Морковь | B68: гр | C68: 17/13
A69: Масло растительное | B69: гр | C69: 11
A70: Соль | B70: гр | C70: 2
A71: Вода | B71: гр | C71: 163
A72: Хлеб ржано- пшеничный | B72: 70
A73: Компот из свежих фруктов | B73: гр | C73: 200
A74: Яблоки | B74: гр | C74: 51/43
A75: Сахарный пеок | B75: гр | C75: 15
A76: Вода | B76: гр | C76: 203

Sheet 13
A2: План-меню
A3: 13 день
A5: Наименование | B5: Ед. изм | C5: Норма закладки
A6: Запеканка из творога со сгущенкой | B6: гр | C6: 80/20
A7: Творог | B7: гр | C7: 73
A8: Манная крупа | B8: гр | C8: 5
A9: Вода | B9: гр | C9: 20
A10: Сметана | B10: гр | C10: 4
A11: Яйцо | B11: гр | C11: 4
A12: Сахарный песок | B12: гр | C12: 7
A13: Масло сливочное | B13: гр | C13: 4
A14: Молоко сгущенное | B14: гр | C14: 20
A15: Мука | B15: гр | C15: 4
A16: Каша манная молочная со сливочным маслом | B16: гр | C16: 250/12
A17: Молоко | B17: гр | C17: 125
A18: Вода | B18: гр | C18: 80
A19: Манная крупа | B19: гр | C19: 25
A20: Сахарный песок | B20: гр | C20: 6
A21: Соль | B21: гр | C21: 2
A22: Масло сливочное | B22: гр | C22: 12
A23: Чай с сахаром | B23: гр | C23: 200
A24: Чай-заварка | B24: гр | C24: 0,7
A25: Сахарный песок | B25: гр | C25: 15
A26: Вода | B26: гр | C26: 210
A27: Хлеб пшеничный | B27: 70
A28: Сок натуральный | B28: гр | C28: 200
A29: Фрукт | B29: гр | C29: 100
A30: Сыр порционный | B30: гр | C30: 30
A31: Сыр | B31: гр | C31: 30
A32: Щи из свежей капусты на мкб со сметаной | B32: 250/15/10
A33: Говядина на кости | B33: гр | C33: 32/24
A34: Капуста | B34: гр | C34: 63/50
A35: Картофель | B35: гр | C35: 50/30
A36: Морковь | B36: гр | C36: 13/10
A37: Лук | B37: гр | C37: 12/10
A38: Томатная паста | B38: гр | C38: 5
A39: Масло растительное | B39: гр | C39: 2
A40: Соль | B40: гр | C40: 2
A41: Вода | B41: гр | C41: 200
A42: Сметана | B42: гр | C42: 10
A43: Макаронные изделия отварные | B43: гр | C43: 200
A44: Макаронные изделия | B44: гр | C44: 70
A45: Масло сливочное | B45: гр | C45: 10
A46: Соль | B46: гр | C46: 2
A47: Гуляш из говядины | B47: гр | C47: 100/75
A48: Говядина на кости | B48: гр | C48: 214/158
A49: Лук | B49: гр | C49: 24/20
A50: Масло растительное | B50: гр | C50: 7
A51: Томатная паста | B51: гр | C51: 10
A52: Мука | B52: гр | C52: 5
A53: Соль | B53: гр | C53: 2
A54: Хлеб ржано- пшеничный | B54: 70
A55: Компот из сухофруктов | B55: гр | C55: 200
A56: Смесь компотная | B56: гр | C56: 20
A57: Сахарный песок | B57: гр | C57: 15
A58: Вода | B58: гр | C58: 210

Sheet 14
A2: План-меню
A3: 14 день
A5: Наименование | B5: Ед. изм | C5: Норма закладки
A6: Яйцо отварное | B6: гр | C6: 40
A7: Яйцо куриное | B7: гр | C7: 40
A8: Каша молочная "Дружба" со сливочным маслом | B8: 250/12
A9: Молоко | B9: Гр | C9: 208
A10: Вода | B10: Гр | C10: 30
A11: Масло сливочное | B11: Гр | C11: 12
A12: Соль | B12: Гр | C12: 0.8
A13: Сахарный песок | B13: Гр | C13: 8
A14: Крупа рисовая | B14: Гр | C14: 17
A15: Какао с молоком | B15: гр | C15: 200
A16: Какао с молоком | B16: гр | C16: 2
A17: Сахарный песок | B17: гр | C17: 15
A18: Молоко | B18: гр | C18: 150
A19: Вода | B19: гр | C19: 70
A20: Хлеб пшеничный | B20: 70
A21: Кондитерское изделие (вафли) | B21: гр | C21: 50
A22: Сок натуральный | B22: гр | C22: 200
A23: Салат из свежих овощей | B23: гр | C23: 100
A24: Помидоры | B24: гр | C24: 56/48
A25: Огурцы | B25: гр | C25: 44/35
A26: Лук репчатый | B26: гр | C26: 14/12
A27: Масло растительное | B27: гр | C27: 6
A28: Суп картофельный с бобовыми (гороховый) на мкб | B28: гр | C28: 250/15/
A29: Говядина на кости | B29: гр | C29: 32/24
A30: Горох | B30: гр | C30: 12
A31: Картофель | B31: гр | C31: 83/50
A32: Лук репчатый | B32: гр | C32: 12/10
A33: Морковь | B33: гр | C33: 12/10
A34: Масло растительное | B34: гр | C34: 2
A35: Вода | B35: гр | C35: 200
A36: Соль | B36: гр | C36: 2
A37: Пюре картофельное | B37: гр | C37: 200
A38: Картофель | B38: гр | C38: 300/180
A39: Молоко | B39: гр | C39: 32
A40: Масло сливочное | B40: гр | C40: 8
A41: Соль | B41: гр | C41: 1
A42: Биточки рыбные из минтая | B42: гр | C42: 100
A43: Минтай | B43: гр | C43: 128/78
A44: Хлеб | B44: гр | C44: 12
A45: Вода | B45: гр | C45: 45
A46: Лук | B46: гр | C46: 24/20
A47: Яйцо | B47: гр | C47: 5
A48: Сухари панировочные | B48: гр | C48: 8
A49: Соль | B49: гр | C49: 0,8
A50: Масло растительное | B50: гр | C50: 1
A51: Хлеб ржано- пшеничный | B51: 70
A52: Кисель ягодный | B52: гр | C52: 200
A53: Концентрат кисель | B53: гр | C53: 24
A54: Сахарный песок | B54: гр | C54: 15
A55: Вода | B55: гр | C55: 200

Sheet Лист1
